fUST/lending_fUST_20250702
["ID","MTS","AMOUNT","RATE_DAILY","PERIOD"]
[368985117,1751425842000,-542.71,0.00019596,2]
[368985119,1751425842010,-460.0,0.00019596,2]
[368985121,1751425842019,-460.0,0.00019596,2]
[368985123,1751425842028,-1365.38,0.00019596,2]
[368985125,1751425842037,-460.0,0.00019596,2]
[368985127,1751425842047,-460.0,0.0001977,2]
[368985129,1751425842056,-1000.0,0.000198,5]
[368985131,1751425842066,-1000.0,0.000198,6]
[368985133,1751425842076,-1499.04023808,0.00019831,2]
[368985135,1751425842085,-605.78,0.00019866,2]
[368985137,1751425842094,-1024.45,0.00019866,2]
[368985139,1751425842104,-907.78,0.00019866,2]
[368985141,1751425842113,-1087.91,0.00019866,2]
[368985143,1751425842122,-460.0,0.00019866,2]
[368985145,1751425842132,-816.5,0.00019866,2]
[368985147,1751425842141,-596.78,0.00019866,2]
[368985149,1751425842151,-585.14,0.00019866,2]
[368985151,1751425842159,-323.55305728,0.00019868,2]
[368985153,1751425842169,-460.0,0.00019868,2]
[368985155,1751425842179,-580.12,0.00019868,2]
[368985157,1751425842188,-488.27206586,0.00019868,2]
[368985159,1751425842197,-1684.06,0.00019868,2]
[368985160,1751425842206,-460.0,0.0001987,2]
[368985161,1751425842216,-460.0,0.0001987,2]
[368985162,1751425842225,-460.0,0.0001987,2]
[368985163,1751425842234,-542.71,0.0001987,2]
[368985164,1751425842244,-460.0,0.0001987,2]
[368985165,1751425842253,-460.0,0.0001987,2]
[368985166,1751425842262,-1365.38,0.0001987,2]
[368985167,1751425842271,-460.0,0.0001987,2]
[368985168,1751425842280,-154.57,0.0002,2]
[368985169,1751425842290,-460.0,0.00020044,2]
[368985170,1751425842299,-179.64071856,0.00020061,2]
[368985171,1751425842308,-1499.04023808,0.00020107,2]
[368985172,1751425842317,-605.78,0.0002014,2]
[368985173,1751425842326,-1024.45,0.0002014,2]
[368985174,1751425842335,-907.78,0.0002014,2]
[368985175,1751425842344,-1087.91,0.0002014,2]
[368985176,1751425842353,-460.0,0.0002014,2]
[368985177,1751425842362,-816.5,0.0002014,2]
[368985178,1751425842371,-596.78,0.0002014,2]
[368985179,1751425842380,-585.14,0.0002014,2]
[368985180,1751425842389,-460.0,0.00020142,2]
[368985181,1751425842399,-580.12,0.00020142,2]
[368985192,1751425842408,-1684.06,0.00020142,2]
[368985195,1751425842518,-460.0,0.00020144,2]
[368985197,1751425842527,-460.0,0.00020144,2]
[368985199,1751425842536,-460.0,0.00020144,2]
[368985201,1751425842546,-542.71,0.00020144,2]
[368985203,1751425842558,-460.0,0.00020144,2]
[368985205,1751425842567,-460.0,0.00020144,2]
[368985207,1751425842576,-1365.38,0.00020144,2]
[368985209,1751425842586,-460.0,0.00020144,2]
[368985211,1751425842594,-312.030178,0.00020187,2]
[368985213,1751425842604,-460.0,0.00020318,2]
[368985215,1751425842613,-1499.04023808,0.00020383,3]
[368985217,1751425842623,-605.78,0.00020413,2]
[368985219,1751425842632,-1024.45,0.00020413,2]
[368985221,1751425842642,-907.78,0.00020413,2]
[368985223,1751425842654,-1087.91,0.00020413,2]
[368985225,1751425842663,-460.0,0.00020413,2]
[368985227,1751425842672,-816.5,0.00020413,2]
[368985229,1751425842681,-596.78,0.00020413,2]
[368985231,1751425842691,-585.14,0.00020413,2]
[368985233,1751425842700,-460.0,0.00020416,2]
[368985235,1751425842709,-580.12,0.00020416,2]
[368985237,1751425842718,-1684.06,0.00020416,2]
[368985239,1751425842728,-460.0,0.00020418,2]
[368985240,1751425842738,-460.0,0.00020418,2]
[368985242,1751425842747,-460.0,0.00020418,2]
[368985244,1751425842757,-542.71,0.00020418,2]
[368985246,1751425842766,-460.0,0.00020418,2]
[368985248,1751425842775,-460.0,0.00020418,2]
[368985250,1751425842784,-1365.38,0.00020418,2]
[368985252,1751425842793,-460.0,0.00020418,2]
[368985255,1751425842804,-587.0,0.0002042,2]
[368985257,1751425842814,-460.0,0.00020592,2]
[368985259,1751425842824,-526.9,0.000206,2]
[368985261,1751425842832,-521.326,0.00020613,2]
[368985263,1751425842841,-178.34288353,0.00020613,2]
[368985264,1751425842851,-1499.04023808,0.00020659,3]
[368985266,1751425842860,-605.78,0.00020687,2]
[368985269,1751425842869,-1024.45,0.00020687,2]
[368985271,1751425842879,-907.78,0.00020687,2]
[368985273,1751425842888,-1087.91,0.00020687,2]
[368985275,1751425842897,-460.0,0.00020687,2]
[368985277,1751425842906,-816.5,0.00020687,2]
[368985280,1751425842915,-596.78,0.00020687,2]
[368985282,1751425842926,-585.14,0.00020687,2]
[368985284,1751425842935,-460.0,0.0002069,2]
[368985286,1751425842945,-580.12,0.0002069,2]
[368985288,1751425842954,-1684.06,0.0002069,2]
[368985290,1751425842963,-460.0,0.00020692,2]
[368985293,1751425842972,-460.0,0.00020692,2]
[368985295,1751425842982,-460.0,0.00020692,2]
[368985297,1751425842991,-542.71,0.00020692,2]
[368985299,1751425843001,-460.0,0.00020692,2]
[368985301,1751425843011,-460.0,0.00020692,2]
[368985304,1751425843020,-1365.38,0.00020692,2]
[368985306,1751425843029,-537.32,0.00020692,2]
[368985308,1751425843039,-1000.0,0.000208,7]
[368985310,1751425843048,-460.0,0.00020866,2]
[368985312,1751425843057,-500.0,0.000209,2]
[368985314,1751425843067,-500.0,0.000209,2]
[368985316,1751425843076,-1499.04023808,0.00020934,4]
[368985318,1751425843086,-605.78,0.00020961,2]
[368985320,1751425843095,-1024.45,0.00020961,2]
[368985322,1751425843105,-907.78,0.00020961,2]
[368985324,1751425843114,-1087.91,0.00020961,2]
[368985327,1751425843123,-460.0,0.00020961,2]
[368985329,1751425843133,-816.5,0.00020961,2]
[368985331,1751425843142,-152.737831,0.00020961,2]
[368985333,1751425843151,-596.78,0.00020961,2]
[368985335,1751425843160,-585.14,0.00020961,2]
[368985337,1751425843170,-151.0,0.00020961,2]
[368985339,1751425843179,-151.0,0.00020961,2]
[368985341,1751425843188,-151.0,0.00020961,2]
[368985343,1751425843197,-499.93,0.00020964,2]
[368985345,1751425843207,-580.12,0.00020964,2]
[368985347,1751425843216,-1684.06,0.00020964,2]
[368985349,1751425843226,-233.86,0.00020966,2]
[368985351,1751425843235,-460.0,0.00020966,2]
[368985353,1751425843245,-460.0,0.00020966,2]
[368985355,1751425843254,-542.71,0.00020966,2]
[368985357,1751425843264,-460.0,0.00020966,2]
[368985359,1751425843273,-460.0,0.00020966,2]
[368985361,1751425843282,-1365.38,0.00020966,2]
[368985363,1751425843292,-1375.74535322,0.00021139,2]
[368985365,1751425843302,-460.0,0.0002114,2]
[368985367,1751425843312,-1499.04023808,0.0002121,4]
[368985369,1751425843321,-605.78,0.00021235,2]
[368985371,1751425843331,-1024.45,0.00021235,2]
[368985373,1751425843340,-907.78,0.00021235,2]
[368985375,1751425843349,-1087.91,0.00021235,2]
[368985377,1751425843359,-460.0,0.00021235,2]
[368985379,1751425843368,-816.5,0.00021235,2]
[368985381,1751425843376,-596.78,0.00021235,2]
[368985383,1751425843386,-585.14,0.00021235,2]
[368985385,1751425843395,-580.12,0.00021238,2]
[368985387,1751425843404,-1684.06,0.00021238,2]
[368985389,1751425843414,-460.0,0.0002124,2]
[368985391,1751425843423,-191.40535192,0.0002124,2]
[368985393,1751425843432,-542.71,0.0002124,2]
[368985396,1751425843443,-460.0,0.0002124,2]
[368985398,1751425843452,-460.0,0.0002124,2]
[368985399,1751425843462,-1365.38,0.0002124,2]
[368985402,1751425843472,-505.69477543,0.00021388,2]
[368985404,1751425843482,-460.0,0.00021414,2]
[368985406,1751425843491,-902.92971106,0.00021448,2]
[368985408,1751425843501,-341.28550224,0.00021448,2]
[368985410,1751425843510,-1499.04023808,0.00021486,5]
[368985412,1751425843519,-605.78,0.00021509,2]
[368985414,1751425843528,-1024.45,0.00021509,2]
[368985416,1751425843538,-907.78,0.00021509,2]
[368985418,1751425843548,-1087.91,0.00021509,2]
[368985420,1751425843558,-460.0,0.00021509,2]
[368985422,1751425843568,-816.5,0.00021509,2]
[368985424,1751425843577,-596.78,0.00021509,2]
[368985425,1751425843586,-585.14,0.00021509,2]
[368985428,1751425843597,-580.12,0.00021512,2]
[368985429,1751425843607,-1684.06,0.00021512,2]
[368985432,1751425843616,-266.27464604,0.00021514,2]
[368985434,1751425843626,-542.71,0.00021514,2]
[368985435,1751425843635,-460.0,0.00021514,2]
[368985438,1751425843646,-359.12,0.00021514,2]
[368985440,1751425843655,-1365.38,0.00021514,2]
[368985442,1751425843665,-472.152101,0.00021688,2]
[368985443,1751425843674,-1499.04023808,0.00021762,5]
[368985446,1751425843684,-605.78,0.00021783,2]
[368985448,1751425843692,-1024.45,0.00021783,2]
[368985450,1751425843702,-907.78,0.00021783,2]
[368985451,1751425843712,-1087.91,0.00021783,2]
[368985454,1751425843722,-235.08,0.00021783,2]
[368985456,1751425843731,-816.5,0.00021783,2]
[368985458,1751425843740,-596.78,0.00021783,2]
[368985460,1751425843749,-585.14,0.00021783,2]
[368985462,1751425843760,-580.12,0.00021786,2]
[368985464,1751425843769,-1684.06,0.00021786,2]
[368985466,1751425843778,-542.71,0.00021788,2]
[368985468,1751425843788,-460.0,0.00021788,2]
[368985470,1751425843798,-1365.38,0.00021788,2]
[368985472,1751425843807,-412.82,0.000218,8]
[368985475,1751425843816,-858.09726662,0.00021838,2]
[368985478,1751425843825,-1334.89343549,0.00021838,2]
[368985514,1751425844154,-32.71534142,0.00017123,2]
[368985517,1751425844169,-427.28465858,0.00017123,2]
[368985519,1751425844179,-397.18126717,0.00017125,2]
[368986023,1751425849194,5000.0,0.0001833,6]
[368988651,1751426038799,9310.77975258,0.00016027,2]
[368988652,1751426038845,15589.22024742,0.00016027,2]
[368988653,1751426085329,-218.28739803,0.00016759,2]
[368988654,1751426089302,-175.32299746,0.00016759,2]
[368988655,1751426091390,-277.66824918,0.00016759,2]
[368988656,1751426096649,10000.0,0.00016025,2]
[368988658,1751426355932,1454.0212007,0.00016024,2]
[368988666,1751426689463,195.9366088,0.00015986,2]
[368988667,1751426737444,-445.886336,0.00016754,2]
[368988670,1751426811294,165.0,0.000183,12]
[368988671,1751426812352,165.0,0.000183,12]
[368988672,1751426827085,-341.48440913,0.00016754,2]
[368988673,1751426833095,-900.45908013,0.00016754,2]
[368988674,1751426852096,-5000.0,0.00016655,2]
[368988675,1751426852117,-208.52483704,0.00016823,2]
[368988676,1751426852139,-481.03750187,0.00016918,2]
[368988677,1751426852160,-1082.00623881,0.00016923,2]
[368988683,1751426923895,296.428669,0.00013699,2]
[368988685,1751426926728,4096.09942763,0.00025162,120]
[368988688,1751426957146,-3318.98990301,0.00016754,2]
[368988689,1751426957331,-90.90162706,0.00016754,2]
[368988690,1751426957352,-760.73666169,0.00016923,2]
[368988691,1751426957373,-199.34669671,0.00016928,2]
[368988692,1751426957393,-197.69,0.0001699,3]
[368988693,1751426957414,-74.23576312,0.00016994,2]
[368988695,1751426994383,439.55286949,0.00025175,60]
[368988755,1751427031757,-300.0,0.00016994,2]
[368988756,1751427031767,-300.0,0.00016994,2]
[368988757,1751427031777,-300.0,0.00016994,2]
[368988758,1751427031786,-1200.0,0.00016994,2]
[368988759,1751427031795,-444.85767074,0.00016995,2]
[368988760,1751427031805,-467.99016226,0.00016995,2]
[368988761,1751427031815,-460.0,0.00016995,2]
[368988762,1751427031825,-3042.17780066,0.00016995,2]
[368988763,1751427031837,-477.78713132,0.00016995,2]
[368988764,1751427031849,-16717.86364533,0.00016995,2]
[368988765,1751427031858,-1200.0,0.00016997,2]
[368988767,1751427031868,-372.99564045,0.00016998,2]
[368988769,1751427031878,-460.0,0.00016998,2]
[368988770,1751427031887,-1006.16450153,0.00016998,2]
[368988771,1751427031897,-460.0,0.00016999,2]
[368988772,1751427031906,-460.0,0.00016999,2]
[368988773,1751427031915,-464.4263832,0.00016999,2]
[368988774,1751427031926,-460.0,0.00016999,2]
[368988775,1751427031935,-460.0,0.00016999,2]
[368988776,1751427031945,-460.0,0.00016999,2]
[368988777,1751427031954,-460.0,0.00016999,2]
[368988779,1751427031964,-560.93834507,0.00016999,2]
[368988781,1751427031974,-448.41619267,0.00016999,2]
[368988782,1751427031983,-460.0,0.00016999,2]
[368988783,1751427031993,-460.0,0.00016999,2]
[368988784,1751427032003,-460.0,0.00016999,2]
[368988785,1751427032012,-463.58216847,0.00016999,2]
[368988786,1751427032021,-408.3558704,0.00016999,2]
[368988787,1751427032031,-460.0,0.00016999,2]
[368988788,1751427032040,-460.0,0.00016999,2]
[368988789,1751427032049,-462.23592634,0.00016999,2]
[368988790,1751427032058,-460.0,0.00016999,2]
[368988791,1751427032068,-460.0,0.00016999,2]
[368988792,1751427032080,-460.0,0.00016999,2]
[368988793,1751427032090,-460.0,0.00016999,2]
[368988794,1751427032100,-460.0,0.00016999,2]
[368988795,1751427032109,-460.0,0.00016999,2]
[368988796,1751427032120,-1037.68,0.00016999,2]
[368988797,1751427032129,-1463.07,0.00016999,2]
[368988798,1751427032139,-500.0,0.00016999,2]
[368988799,1751427032150,-265.40588992,0.00016999,2]
[368988800,1751427032159,-371.755138,0.00016999,2]
[368988801,1751427032169,-477.10836851,0.00016999,2]
[368988802,1751427032178,-202.18227647,0.00016999,2]
[368988803,1751427032188,-500.0,0.00016999,2]
[368988804,1751427032198,-518.82189712,0.00016999,2]
[368988805,1751427032208,-435.29219125,0.00016999,2]
[368988806,1751427032217,-7316.21295949,0.00017,2]
[368988807,1751427032229,-107670.63351509,0.00017,2]
[368988808,1751427032242,-10092.92084525,0.00017,2]
[368988809,1751427032258,-74160.79913417,0.00017,2]
[368988810,1751427032268,-232.13,0.00017018,3]
[368988811,1751427032278,-696.43,0.00017018,3]
[368988812,1751427032287,-1865.39,0.00017021,2]
[368988813,1751427032415,-460.0,0.00017021,2]
[368988814,1751427032425,-447.04088469,0.00017021,2]
[368988815,1751427032434,-461.65381141,0.00017021,2]
[368988816,1751427032443,-460.9371985,0.00017021,2]
[368988817,1751427032453,-460.0,0.00017021,2]
[368988818,1751427032462,-460.0,0.00017021,2]
[368988819,1751427032472,-461.58301226,0.00017021,2]
[368988820,1751427032481,-460.0,0.00017021,2]
[368988821,1751427032491,-460.0,0.00017021,2]
[368988822,1751427032500,-460.0,0.00017021,2]
[368988823,1751427032509,-461.34490365,0.00017021,2]
[368988824,1751427032518,-472.53548511,0.00017021,2]
[368988825,1751427032528,-698.42,0.00017021,2]
[368988826,1751427032537,-460.0,0.00017021,2]
[368988827,1751427032546,-1579.02,0.00017021,2]
[368988828,1751427032556,-460.0,0.00017021,2]
[368988829,1751427032565,-460.0,0.00017021,2]
[368988830,1751427032575,-460.0,0.00017021,2]
[368988831,1751427032585,-460.0,0.00017021,2]
[368988832,1751427032594,-776.17,0.00017021,2]
[368988833,1751427032602,-460.0,0.00017021,2]
[368988834,1751427032612,-460.0,0.00017021,2]
[368988835,1751427032622,-460.0,0.00017021,2]
[368988836,1751427032632,-460.0,0.00017021,2]
[368988837,1751427032641,-1475.97,0.00017021,2]
[368988838,1751427032651,-1491.72,0.00017021,2]
[368988839,1751427032660,-460.0,0.00017021,2]
[368988840,1751427032670,-460.0,0.00017021,2]
[368988841,1751427032679,-460.0,0.00017021,2]
[368988842,1751427032689,-886.62,0.00017021,2]
[368988843,1751427032698,-460.0,0.00017021,2]
[368988844,1751427032708,-460.0,0.00017021,2]
[368988845,1751427032717,-460.0,0.00017021,2]
[368988846,1751427032727,-963.68,0.00017021,2]
[368988847,1751427032736,-460.0,0.00017021,2]
[368988848,1751427032745,-460.0,0.00017021,2]
[368988849,1751427032754,-460.0,0.00017021,2]
[368988850,1751427032764,-460.0,0.00017021,2]
[368988851,1751427032773,-464.30465457,0.00017021,2]
[368988852,1751427032782,-460.0,0.00017021,2]
[368988853,1751427032792,-460.0,0.00017021,2]
[368988854,1751427032801,-460.0,0.00017021,2]
[368988855,1751427032811,-460.0,0.00017021,2]
[368988856,1751427032820,-460.0,0.00017021,2]
[368988857,1751427032829,-460.0,0.00017021,2]
[368988858,1751427032839,-460.0,0.00017021,2]
[368988859,1751427032848,-385.38232796,0.00017021,2]
[368988860,1751427032858,-460.0,0.00017021,2]
[368988861,1751427032867,-460.0,0.00017023,2]
[368988862,1751427032877,-460.0,0.00017023,2]
[368988863,1751427032886,-288.5491139,0.00017023,2]
[368988864,1751427032895,-460.0,0.00017023,2]
[368988865,1751427032905,-460.0,0.00017023,2]
[368988866,1751427032914,-484.84994904,0.00017023,2]
[368988867,1751427032923,-460.0,0.00017023,2]
[368988868,1751427032942,-460.0,0.00017023,2]
[368988869,1751427032954,-460.0,0.00017023,2]
[368988870,1751427032964,-460.0,0.00017023,2]
[368988871,1751427032974,-423.95001621,0.00017023,2]
[368988872,1751427032984,-460.0,0.00017023,2]
[368988873,1751427032995,-460.0,0.00017023,2]
[368988874,1751427033004,-460.0,0.00017023,2]
[368988875,1751427033015,-460.0,0.00017023,2]
[368988876,1751427033025,-460.0,0.00017023,2]
[368988877,1751427033036,-460.0,0.00017023,2]
[368988878,1751427033046,-460.0,0.00017023,2]
[368988879,1751427033057,-460.0,0.00017023,2]
[368988880,1751427033067,-460.0,0.00017023,2]
[368988881,1751427033079,-463.81811296,0.00017023,2]
[368988882,1751427033089,-458.44780708,0.00017023,2]
[368988883,1751427033099,-460.0,0.00017023,2]
[368988884,1751427033109,-469.73600955,0.00017023,2]
[368988885,1751427033120,-460.0,0.00017023,2]
[368988886,1751427033130,-462.64977402,0.00017023,2]
[368988887,1751427033140,-472.04642044,0.00017023,2]
[368988888,1751427033151,-471.99987411,0.00017023,2]
[368988889,1751427033162,-460.0,0.00017023,2]
[368988890,1751427033172,-460.0,0.00017023,2]
[368988891,1751427033182,-460.0,0.00017023,2]
[368988892,1751427033192,-460.0,0.00017023,2]
[368988893,1751427033202,-460.0,0.00017023,2]
[368988894,1751427033212,-460.0,0.00017023,2]
[368988895,1751427033222,-460.0,0.00017023,2]
[368988896,1751427033232,-460.0,0.00017023,2]
[368988897,1751427033242,-460.0,0.00017023,2]
[368988898,1751427033252,-473.78276086,0.00017023,2]
[368988899,1751427033262,-460.0,0.00017023,2]
[368988900,1751427033272,-460.0,0.00017023,2]
[368988901,1751427033282,-460.0,0.00017023,2]
[368988902,1751427033292,-460.0,0.00017023,2]
[368988903,1751427033303,-460.0,0.00017023,2]
[368988904,1751427033312,-460.0,0.00017023,2]
[368988905,1751427033323,-588.363884,0.00017023,2]
[368988906,1751427033333,-464.17118139,0.00017023,2]
[368988907,1751427033343,-460.0,0.00017023,2]
[368988908,1751427033353,-460.0,0.00017023,2]
[368988909,1751427033363,-460.0,0.00017023,2]
[368988910,1751427033373,-466.5141006,0.00017023,2]
[368988911,1751427033383,-460.0,0.00017023,2]
[368988912,1751427033393,-460.0,0.00017023,2]
[368988913,1751427033403,-461.29,0.00017023,2]
[368988914,1751427033413,-460.0,0.00017023,2]
[368988915,1751427033424,-460.0,0.00017023,2]
[368988916,1751427033433,-460.0,0.00017023,2]
[368988917,1751427033443,-460.0,0.00017023,2]
[368988918,1751427033454,-460.0,0.00017023,2]
[368988919,1751427033464,-460.0,0.00017023,2]
[368988920,1751427033473,-1552.17,0.00017023,2]
[368988921,1751427033485,-460.0,0.00017023,2]
[368988922,1751427033495,-460.0,0.00017023,2]
[368988923,1751427033505,-485.22396366,0.00017023,2]
[368988924,1751427033515,-460.0,0.00017023,2]
[368988925,1751427033524,-465.46692777,0.00017023,2]
[368988926,1751427033534,-460.0,0.00017023,2]
[368988927,1751427033544,-460.0,0.00017023,2]
[368988928,1751427033554,-408.05153899,0.00017023,2]
[368988929,1751427033568,-533.04342179,0.00017023,2]
[368988930,1751427033578,-460.0,0.00017023,2]
[368988931,1751427033588,-1297.08,0.00017023,2]
[368988932,1751427033598,-460.0,0.00017023,2]
[368988933,1751427033608,-465.34492089,0.00017023,2]
[368988934,1751427033619,-460.0,0.00017023,2]
[368988935,1751427033629,-504.92359047,0.00017023,2]
[368988936,1751427033639,-460.0,0.00017023,2]
[368988937,1751427033648,-460.0,0.00017023,2]
[368988938,1751427033658,-460.0,0.00017023,2]
[368988939,1751427033668,-460.0,0.00017023,2]
[368988940,1751427033678,-460.0,0.00017023,2]
[368988941,1751427033688,-485.81,0.00017023,2]
[368988942,1751427033699,-460.0,0.00017023,2]
[368988943,1751427033709,-460.0,0.00017023,2]
[368988944,1751427033719,-460.0,0.00017023,2]
[368988945,1751427033729,-460.0,0.00017023,2]
[368988946,1751427033739,-460.0,0.00017023,2]
[368988947,1751427033749,-460.0,0.00017023,2]
[368988948,1751427033759,-460.0,0.00017023,2]
[368988949,1751427033769,-460.0,0.00017023,2]
[368988950,1751427033779,-685.5,0.00017023,2]
[368988951,1751427033789,-460.0,0.00017023,2]
[368988952,1751427033799,-164.05861019,0.00017023,2]
[368988953,1751427033808,-460.0,0.00017023,2]
[368988954,1751427033818,-460.0,0.00017023,2]
[368988955,1751427033828,-460.0,0.00017023,2]
[368988956,1751427033837,-460.0,0.00017023,2]
[368988957,1751427033847,-460.0,0.00017023,2]
[368988958,1751427033857,-460.0,0.00017023,2]
[368988959,1751427033867,-464.76332253,0.00017023,2]
[368988960,1751427033876,-466.24963924,0.00017023,2]
[368988961,1751427033887,-528.76612052,0.00017023,2]
[368988962,1751427033896,-460.0,0.00017023,2]
[368988963,1751427033906,-404.60494926,0.00017023,2]
[368988964,1751427033916,-357.86870065,0.00017023,2]
[368988965,1751427033926,-160.0,0.00017023,2]
[368988966,1751427033935,-1297.08,0.00017026,2]
[368988967,1751427033945,-1079.56948992,0.00017027,2]
[368988968,1751427033955,-460.0,0.00017027,2]
[368988969,1751427033964,-461.50255956,0.00017027,2]
[368988970,1751427033974,-338.08647775,0.00017027,2]
[368988971,1751427033984,-460.0,0.00017027,2]
[368988972,1751427033994,-460.0,0.00017027,2]
[368988973,1751427034003,-465.46682823,0.00017027,2]
[368988974,1751427034013,-414.12677892,0.00017027,2]
[368988975,1751427034023,-460.0,0.00017027,2]
[368988976,1751427034033,-464.21468383,0.00017027,2]
[368988977,1751427034042,-483.91036332,0.00017027,2]
[368988978,1751427034052,-460.0,0.00017027,2]
[368988979,1751427034062,-460.0,0.00017027,2]
[368988980,1751427034072,-460.0,0.00017027,2]
[368988981,1751427034084,-460.0,0.00017027,2]
[368988982,1751427034094,-472.98918173,0.00017027,2]
[368988983,1751427034104,-460.0,0.00017027,2]
[368988984,1751427034113,-192.7146777,0.00017027,2]
[368988985,1751427034123,-471.14852699,0.00017027,2]
[368988986,1751427034133,-463.70203892,0.00017027,2]
[368988987,1751427034142,-460.0,0.00017027,2]
[368988988,1751427034153,-462.46074075,0.00017027,2]
[368988989,1751427034162,-460.0,0.00017027,2]
[368988990,1751427034172,-460.0,0.00017027,2]
[368988991,1751427034184,-465.11954984,0.00017027,2]
[368988992,1751427034194,-402.64719465,0.00017027,2]
[368988993,1751427034204,-436.41339066,0.00017027,2]
[368988994,1751427034214,-460.0,0.00017027,2]
[368988995,1751427034224,-463.18204946,0.00017027,2]
[368988996,1751427034233,-460.0,0.00017027,2]
[368988997,1751427034243,-463.87996587,0.00017027,2]
[368988998,1751427034253,-463.0211996,0.00017027,2]
[368988999,1751427034263,-460.0,0.00017027,2]
[368989000,1751427034273,-460.0,0.00017027,2]
[368989001,1751427034282,-460.0,0.00017027,2]
[368989002,1751427034292,-472.72490232,0.00017027,2]
[368989003,1751427034302,-463.6253877,0.00017027,2]
[368989004,1751427034312,-460.0,0.00017027,2]
[368989005,1751427034322,-470.38254987,0.00017027,2]
[368989006,1751427034331,-460.0,0.00017027,2]
[368989007,1751427034340,-461.93589729,0.00017027,2]
[368989008,1751427034350,-460.0,0.00017027,2]
[368989009,1751427034359,-461.50599162,0.00017027,2]
[368989010,1751427034369,-460.0,0.00017027,2]
[368989011,1751427034378,-467.6183911,0.00017027,2]
[368989012,1751427034388,-460.0,0.00017027,2]
[368989013,1751427034398,-487.12514117,0.00017027,2]
[368989014,1751427034407,-463.44225513,0.00017027,2]
[368989015,1751427034417,-460.0,0.00017027,2]
[368989016,1751427034426,-468.53384802,0.00017027,2]
[368989017,1751427034436,-460.0,0.00017027,2]
[368989018,1751427034445,-462.5250356,0.00017027,2]
[368989019,1751427034455,-464.67912196,0.00017027,2]
[368989020,1751427034465,-460.0,0.00017027,2]
[368989021,1751427034474,-463.28805727,0.00017027,2]
[368989022,1751427034485,-460.0,0.00017027,2]
[368989023,1751427034495,-466.56148945,0.00017027,2]
[368989024,1751427034504,-506.84207052,0.00017027,2]
[368989025,1751427034515,-336.2881086,0.00017027,2]
[368989026,1751427034524,-505.99664797,0.00017027,2]
[368989027,1751427034534,-153.2923047,0.00017027,2]
[368989028,1751427034543,-460.0,0.00017027,2]
[368989029,1751427034553,-235.05546264,0.00017027,2]
[368989030,1751427034562,-463.89190382,0.00017027,2]
[368989031,1751427034572,-460.0,0.00017027,2]
[368989032,1751427034581,-465.22236971,0.00017027,2]
[368989033,1751427034591,-460.0,0.00017027,2]
[368989034,1751427034600,-460.0,0.00017027,2]
[368989035,1751427034610,-2604.95,0.00017027,2]
[368989036,1751427034619,-460.0,0.00017027,2]
[368989037,1751427034631,-460.0,0.00017027,2]
[368989038,1751427034641,-460.0,0.00017027,2]
[368989039,1751427034651,-610.35,0.00017027,2]
[368989040,1751427034661,-477.63806344,0.00017027,2]
[368989041,1751427034671,-389.1506563,0.00017027,2]
[368989042,1751427034681,-460.0,0.00017027,2]
[368989043,1751427034691,-1297.08,0.00017027,2]
[368989044,1751427034701,-1297.08,0.00017027,2]